Cogmind - Beta 15 @@@ ROGUE MODE // 2025.10.19 @ 07:35:04 Player: UberDoot Result: Destroyed by V9-99S(R) with Subdweller Laser Performance ------------- Evolutions (0) 0 Regions Visited (2) 400 Robots Destroyed (45) 225 Value Destroyed (859) 859 Prototype IDs (13) 260 Alien Tech Used (0) 0 Bonus (0) 0 TOTAL SCORE: 1744 Bonus ------- None Cogmind --------- Core Integrity 0/250 Matter 106/300 Energy 186/200 System Corruption 0% Temperature Cool (6) Movement Treading (160) Location -10/Subcaves Parts ------- > --- POWER (1+1) ------ Subdweller Power Source > --- PROPULSION (2+2) - Light Treads (+) Light Treads (+) Light Treads > --- UTILITY (2+2) ---- Medium Storage Unit (+) Seismic Detector (+) > --- WEAPON (2+2) ----- Light Cannon Light Cannon > --- INVENTORY (10) --- Subdweller Power Source Compact Wheel Subdweller Monowheel Seismic Detector Hardened Light Armor Plating Light Cannon Light Cannon Subdweller Shrapnel Launcher Multitool Makeshift Sword Peak State ------------ > --- POWER ------------ Subdweller Power Source > --- PROPULSION ------- Light Treads Light Treads Light Treads Compact Wheel > --- UTILITY ---------- Medium Storage Unit Tower Shield > --- WEAPON ----------- Light Cannon Makeshift Sword > --- INVENTORY -------- Seismic Detector Seismic Detector Hardened Light Armor Plating Light Cannon Light Cannon Light Cannon Subdweller Shrapnel Launcher Multitool [Rating: 33] Favorites ----------- Power Ion Engine Engine Ion Engine Propulsion Light Treads Treads Light Treads Leg Aluminum Leg Wheel Compact Wheel Utility Medium Storage Unit Device Seismic Detector Storage Medium Storage Unit Protection Tower Shield Weapon Light Cannon Energy Gun Medium Laser Ballistic Gun Assault Rifle Ballistic Cannon Light Cannon Launcher Subdweller Shrapnel Launcher Slashing Weapon Makeshift Sword Build | -11 -10 -10 ------- Run | Yrd Mat Sub Slots Evolved . | . . . Power . | . . . Propulsion . | . . . Utility . | . . . Weapon . | . . . Parts Attached 25 | 7 10 8 Power 2 | 1 . 1 Engine 2 | 1 . 1 Core . | . . . Reactor . | . . . Propulsion 7 | 2 3 2 Treads 3 | . 2 1 Leg 2 | 2 . . Wheel 2 | . 1 1 Hover . | . . . Flight . | . . . Utility 6 | 2 3 1 Device 1 | 1 . . Storage 2 | 1 1 . Processor . | . . . Hackware . | . . . Protection 3 | . 2 1 Artifact . | . . . Weapon 10 | 2 4 4 Energy Gun 1 | 1 . . Energy Cannon . | . . . Ballistic Gun 1 | 1 . . Ballistic Cannon 6 | . 4 2 Launcher 1 | . . 1 Special Weapon . | . . . Impact Weapon . | . . . Slashing Weapon 1 | . . 1 Piercing Weapon . | . . . Special Melee Weapon . | . . . Unidentified Prototypes . | . . . Parts Lost 1 | . . 1 Power . | . . . Propulsion . | . . . Utility 1 | . . 1 Weapon . | . . . Highest Loss Streak 1 | . . 1 To Critical Strikes . | . . . Average Backups 9 | 5 9 9 Power . | . . . Propulsion 1 | 2 . 2 Utility 3 | . 4 2 Weapon 3 | 1 3 3 Tool/Special . | . . . Unused Backups 14 | 2 3 9 Power 2 | . 1 1 Propulsion 4 | 2 . 2 Utility 4 | . 1 3 Weapon 3 | . 1 2 Tool/Special 1 | . . 1 Average Slot Usage (%) 89 | . 99 74 Engine 12 | . 14 9 Treads 18 | . 18 17 Leg 1 | . 2 . Wheel 5 | . 6 5 Device 7 | . 8 7 Storage 12 | . 14 9 Protection 5 | . 5 5 Ballistic Cannon 22 | . 25 17 Peak Build Rating 33 | 7 9 33 Average Rating 13 | 5 8 22 On Entrance 5 | . 7 9 Naked Turns . | . . . Heaviest Build 65 | 15 26 65 Greatest Support 60 | 20 40 60 Greatest Overweight (x) 3 | . 1 3 Average Overweight (x) . | . . . Largest Inventory Capacity 10 | 8 10 10 Average Capacity 9 | 7 9 9 Most Carried 10 | 8 10 10 Average Carried 9 | 5 9 9 Final Capacity 10 | 8 10 10 Final Carried 10 | 7 10 10 Class Distribution -------------------- 100% | Mutant Dominant Class ---------------- Mutant | -10/Materials Mutant | -10/Subcaves Resources | -11 -10 -10 ----------- Run | Yrd Mat Sub Matter Collected 1049 | 291 525 233 Remotely . | . . . Salvage Created 980 | 163 683 134 Parts 80 | 13 53 14 Haulers Intercepted 1 | . 1 . Recyclers Shooed 1 | 1 . . Parts Field Recycled . | . . . Retrieved Matter . | . . . Parts Self-Destructed 11 | . . 11 Prevented . | . . . Kills | -11 -10 -10 ------- Run | Yrd Mat Sub Combat Hostiles Destroyed 35 | . 24 11 Guns 4 | . 4 . Cannons 31 | . 20 11 Classes Destroyed 8 | 2 5 1 Worker 1 | . 1 . Tunneler 4 | 4 . . Hauler 1 | . 1 . Recycler 2 | 1 1 . Watcher 2 | . 2 . Swarmer 19 | . 12 7 Grunt 12 | . 12 . Subdweller 4 | . . 4 Best Kill Streak 6 | 2 6 4 Combat Bots Only 6 | . 6 4 Max Kills in Single Turn 2 | 1 2 1 Gunslinging . | . . . Exploded . | . . . Melee . | . . . Uniques/NPCs Destroyed . | . . . Combat | -11 -10 -10 -------- Run | Yrd Mat Sub Hostile Shots Fired 183 | . 110 73 Missed 58 | . 31 27 Hits 125 | . 79 46 Projectile 125 | . 79 46 Critical Strikes 3 | . 1 2 Damage Taken 1507 | . 745 762 Core 254 | . 165 89 Absorbed by Shields . | . . . Regen/Repaired (Parts) 218 | . 218 . Core Remaining (%) 100 | 100 . . Volleys Fired 98 | 8 59 31 Largest 2 | 2 2 2 Hottest 70 | 70 70 60 Shots Fired 194 | 16 118 60 Gun 52 | 16 36 . Cannon 140 | . 82 58 Launcher 2 | . . 2 Special . | . . . Kinetic 168 | 8 100 60 Thermal 26 | 8 18 . Explosive . | . . . Electromagnetic . | . . . Robot Hit Streak 13 | 6 12 13 Robot Miss Streak 4 | 1 4 3 Penetration Max . | . . . Secondary Targets 1 | . 1 . Max Gunslinging Chain 1 | . 1 . Shots Hit Robots 116 | 11 67 38 Core Hits 57 | 6 34 17 Critical Kills . | . . . Critical Parts Destroyed . | . . . Critical Strikes 5 | . 2 3 Blast 5 | . 2 3 Melee Attacks 3 | . . 3 Impact . | . . . Slashing 3 | . . 3 Piercing . | . . . Sneak Attacks . | . . . Combat Hostiles . | . . . Follow-up Attacks . | . . . Damage Inflicted 2051 | 134 1051 866 Guns 458 | 134 324 . Cannons 1429 | . 727 702 Explosions 164 | . . 164 Melee . | . . . Ramming . | . . . Kinetic 1826 | 60 900 866 Thermal 225 | 74 151 . Explosive . | . . . Electromagnetic . | . . . Impact . | . . . Slashing . | . . . Piercing . | . . . Highest Corruption . | . . . Average Corruption . | . . . Corruption Purged . | . . . Corruption Blocked . | . . . Overload Shots . | . . . Overflow Damage 19 | . 19 . Projectiles 19 | . 19 . Explosions . | . . . Melee . | . . . Knockbacks 16 | . 8 8 Impact . | . . . Kinetic 15 | . 7 8 Secondary 1 | . 1 . Self-Inflicted Damage 31 | . . 31 Shots 1 | . . 1 Rammed . | . . . Targets Rammed . | . . . Kicked . | . . . Crushed . | . . . Highest Temperature 153 | 27 153 . Average Temperature 45 | 11 51 . Received Heat Transfer 342 | . 189 153 Siege Activations . | . . . Martial Activations . | . . . Shielding Activations . | . . . Robots Disrupted . | . . . Combat Hostiles . | . . . Robots Corrupted . | . . . Combat Hostiles . | . . . Parts Fried . | . . . Impact Corruptions . | . . . Robots Melted . | . . . Combat Hostiles . | . . . Parts Melted . | . . . Heat Transferred 666 | 222 444 . Parts Sabotaged . | . . . Parts Stolen . | . . . Parts Stripped . | . . . Power Chain Reactions . | . . . Alert | -11 -10 -10 ------- Run | Yrd Mat Sub Maximum Alert Level 1 | . 1 . Low Security (%) 80 | 100 77 . Level 1 19 | . 22 . Level 2 . | . . . Level 3 . | . . . Level 4 . | . . . Level 5 . | . . . High Security . | . . . Max Security . | . . . Peak Influence 223 | 10 223 . Initial . | . . . Average 137 | 1 153 . Influence Increases 933 | 25 683 225 Destroy 0b10 Robot/C 620 | . 480 140 Destroy 0b10 Robot/NC 50 | 25 25 . Destroy Leader 106 | . 96 10 Successful Hack 20 | . 20 . Select Force Hacks 60 | . 60 . Destroy Structure 2 | . 2 . Lose Combat Pursuer 75 | . . 75 Influence Decreases 933 | 25 488 420 Entered New Map 95 | . . 95 Time Decay 838 | 25 488 325 Squads Dispatched 4 | . 4 . Investigation 2 | . 2 . Extermination . | . . . Reinforcement 2 | . 2 . Assault . | . . . Garrison . | . . . Intercept . | . . . Searches Triggered . | . . . Construction Impeded . | . . . Haulers Reinforced . | . . . Active Scanning Responses . | . . . Cargo Convoy Interrupts . | . . . Stealth | -11 -10 -10 --------- Run | Yrd Mat Sub Distress Signals 2 | . 2 . Communications Jammed . | . . . Distress Signals . | . . . Times Spotted 45 | . 31 14 Peak Tracking Total 6 | . 6 6 Tactical Retreats 3 | . . 3 Traps | -11 -10 -10 ------- Run | Yrd Mat Sub Traps Triggered 1 | . . 1 Indirectly . | . . . Trap Hack Attempts . | . . . Triggered . | . . . Disarmed . | . . . Reprogrammed . | . . . Reused . | . . . Traps Extracted . | . . . Installed . | . . . Triggered . | . . . Machines | -11 -10 -10 ---------- Run | Yrd Mat Sub Machines Disabled 1 | . . 1 Max in Single Turn 1 | . . 1 Machines Repaired . | . . . Machines Dismantled . | . . . Machines Sabotaged . | . . . Overloaded Fab Kills . | . . . Hacking | -11 -10 -10 --------- Run | Yrd Mat Sub Machines Accessed 10 | . 9 1 Terminals 6 | . 6 . Fabricators . | . . . Repair Stations 1 | . 1 . Recycling Units 2 | . 2 . Scanalyzers . | . . . Garrison Access . | . . . Total Hacks 25 | . 24 1 Successful 15 | . 14 1 Failed 10 | . 10 . Catastrophic 2 | . 2 . Database Lockouts . | . . . Manual 16 | . 16 . Terminals 18 | . 18 . Fabricators . | . . . Repair Stations 4 | . 4 . Recycling Units 2 | . 2 . Scanalyzers . | . . . Garrison Access . | . . . Terminal Hacks 7 | . 6 1 Part Schematic 2 | . 2 . Prototype ID Bank 1 | . 1 . Branch Access Points 1 | . 1 . Locate Traps 1 | . 1 . Hauler Manifests 1 | . 1 . Proto ID Catalog 1 | . . 1 Fabricator Hacks . | . . . Repair Station Hacks 4 | . 4 . Scan Component 2 | . 2 . Repair 2 | . 2 . Recycling Unit Hacks . | . . . Scanalyzer . | . . . Garrison Access Hacks . | . . . Unauthorized Hacks 4 | . 4 . Terminals 2 | . 2 . Botnet 2 | . 2 . Fabricators . | . . . Repair Stations . | . . . Recycling Units 2 | . 2 . Tunnel 2 | . 2 . Scanalyzers . | . . . Garrison Access . | . . . Data Cores Recovered . | . . . Used . | . . . Hacking Detections 6 | . 6 . Full Trace Events . | . . . Feedback Events . | . . . Feedback Blocked . | . . . Robot Schematics Acquired . | . . . Robots Built . | . . . Authchips . | . . . Time . | . . . Total Robot Build Rating . | . . . Part Schematics Acquired 2 | . 2 . Parts Built . | . . . Authchips . | . . . Time . | . . . Total Part Build Rating . | . . . Parts Repaired 2 | . 2 . Time 52 | . 52 . Parts Recycled . | . . . Recycled Matter . | . . . Retrieved Matter . | . . . Retrieved Components . | . . . Parts Scanalyzed . | . . . Part Schematics Acquired . | . . . Parts Damaged . | . . . Bothacking | -11 -10 -10 ------------ Run | Yrd Mat Sub Used RIF Installer . | . . . Robots Hacked . | . . . Non-combat . | . . . Combat . | . . . Robot Hacks Applied . | . . . Relay Couplers Released . | . . . Fabnet Peak Effective % . | . . . Robots Rewired . | . . . Allies Hacked . | . . . Hacks Repelled . | . . . Allies | -11 -10 -10 -------- Run | Yrd Mat Sub Total Allies . | . . . Largest Group . | . . . Highest-Rated Group . | . . . Highest-Rated Ally . | . . . Total Orders . | . . . Ally Attacks . | . . . Total Damage . | . . . Kills . | . . . Allies Corrupted . | . . . Allies Melted . | . . . Intel | -11 -10 -10 ------- Run | Yrd Mat Sub Active Infowar (turns) 1617 | 57 859 701 Seismic 1617 | 57 859 701 Robot Analysis Total . | . . . Derelict Logs Recovered 1 | . . 1 Drone Launches . | . . . Drone Recoveries . | . . . Exploration | -11 -10 -10 ------------- Run | Yrd Mat Sub Turns Passed 2555 | 171 1432 952 Spaces Moved 1250 | 111 623 516 Core 10 | 10 . . Treads 764 | . 410 354 Legs 155 | 101 54 . Wheels 321 | . 159 162 Hover . | . . . Flight . | . . . Fastest Speed 50 | 50 115 115 Average Speed 151 | 113 154 155 Slowest Speed 240 | 120 240 240 Overloaded Moves . | . . . Propulsion Burnouts . | . . . Robots Hopped . | . . . Potential Cave-ins . | . . . Cave-ins Triggered . | . . . Exploration Rate (%) 45 | 7 94 36 Regions Visited 2 Branch Regions 1 Pre-discovered Areas 2 | . 2 . Known Exits Taken . | . . . Unknown Exits Taken 2 | 1 1 . Scrap Searched 1 | . . 1 Spaces Dug 15 | . . 15 Terrain Destroyed 29 | . . 29 Melee . | . . . Projectile . | . . . AOE 29 | . . 29 Terrain Rammed . | . . . Walls Destroyed . | . . . Machines Disabled . | . . . Actions | -11 -10 -10 --------- Run | Yrd Mat Sub Total 1722 | 138 981 603 Wait 275 | 1 261 13 Move 1248 | 110 622 516 Hop . | . . . Pick Up 33 | 10 10 13 Fast Attach 14 | 6 4 4 Attach 8 | 1 2 5 Detach 4 | . 3 1 Swap 15 | . 8 7 Drop 24 | 2 12 10 Fire 98 | 8 59 31 Melee 3 | . . 3 Ram . | . . . Kick . | . . . Crush . | . . . Escape Stasis . | . . . Rewire . | . . . Trap . | . . . Miscellaneous . | . . . Route ------- -11/Scrapyard -10/Materials (discovered 5 exits: [*Mat x3] / *Min / *Sub) -10/Subcaves History --------- Turn | Location | Event 15 | -11/Scrapyard | Discovered new exit (range 15) 172 | -11/Scrapyard | Entered Materials 298 | -10/Materials | Discovered new exit (range 14) 341 | -10/Materials | Build established: Mutant 633 | -10/Materials | Core integrity fell below 50% 690 | -10/Materials | Discovered new exit (range 5) 872 | -10/Materials | Derelicts attacked the area 1011 | -10/Materials | Discovered new exit (range 7) 1254 | -10/Materials | Discovered new exit (range 12) 1266 | -10/Materials | Identified exit to Mines 1395 | -10/Materials | Repaired Lgt. Treads 1422 | -10/Materials | Repaired Lgt. Treads 1590 | -10/Materials | Discovered new exit (range 7) 1604 | -10/Materials | Entered Subcaves 1673 | -10/Subcaves | Learned 2 Materials zone layouts 1728 | -10/Subcaves | Ambushed by angry Subdweller bent on revenge 1729 | -10/Subcaves | Core integrity fell below 20% 1922 | -10/Subcaves | Visited 4L-MR0's lab 1938 | -10/Subcaves | Found Tower Shield 1939 | -10/Subcaves | Attached Tower Shield, gained temporary slots: Power, Propulsion x2, Utility x2, Weapon x2 2556 | -10/Subcaves | Destroyed by V9-99S(R) with Subdweller Laser Last Messages --------------- 02206_ 63-KE4(R) knocked back. 02215_ 63-KE4(R) destroyed. 02226_ Acquired 8 matter. 02227_ Acquired 22 matter. 02230_ Acquired Sub. Power Source. 02233_ Acquired 4 matter. 02235_ Acquired 20 matter. 02236_ Acquired 3 matter. 02238_ Acquired 2 matter. 02241_ Acquired 4 matter. 02243_ Dropped Wheel. 02246_ Acquired Sub. Monowheel. 02265_ Triggered Piercing Trap. 02265_ Spikes shoot up from the floor. 02265_ Critical hit (Impale). 02536_ V9-99S(R) emerges from the Twisted Machinery. 02551_ TV-C67(R) destroyed. 02551_ V9-99S(R) knocked back. 02554_ Tower Shield destroyed. Map ----- +----------------------------------------------------+ | #??# #?????????????????????????????????? | | #### #?????????????????????????????????? | | #### #?????????????????????????????????? | | #???# #?????????????????????????????????? | | ????# #?????????????????????????????????? | | ????## ##?????????????????????????????????? | | ?????#### #??????????????????????????????????? | | ??##?#### #??????????????????????????????????? | | ?## ## #??????????????????????????????????? | | ?# #??????????????????????????????????? | | ?# ##??????????????????????????????????? | | ?# ###???????????????????????????????????? | | ?# #?????????????????????????????????????? | | ?## #???????????????????????? ????????????? | | ??### #??????????????????????? ????????????? | | ??### ##??###?????????????????? ????????????? | | ??# ##?### ##???????????????? ???????????? | | ?## #?## #???????????????? """???????????? | | ?# ##?# ##?????????????? "#??????????? | | ?## ##### #?????????????? ???????????? | | ??## ### #????????????? ???????????? | | ???# ##???????????? " ?????????????? | | ???# #?########## ""#??????????????? | | ???## ### #; ;; #???????????????? | | ????# ## ## ## ;; = ##??????????????? | | ????# #### ### @ % #??????????????? | | ????# #??###### & R ##??????????????? | | ????## #???#### #; ;#???????????????? | | ?????###??## ### #???????????????? | | ??????????# #####?# #???????????????? | | ?????????# ##?????# ; #???????????????? | | ?????????## ####??????##;;;;; #???????????????? | | ??????????####????????????########???????????????? | | ?????????????????????????????????????????????????? | | ?????????????????????????????????????????????????? | | ?????????????????????????????????????????????????? | | ?????????????????????????????????????????????????? | | ?????????????????????????????????????????????????? | | ?????????????????????????????????????????????????? | | ?????????????????????????????????????????????????? | | ?????????????????????????????????????????????????? | | ?????????????????????????????????????????????????? | | ?????????????????????????????????????????????????? | | ?????????????????????????????????????????????????? | | ?????????????????????????????????????????????????? | | ?????????????????????????????????????????????????? | | ?????????????????????????????????????????????????? | | | | | | | +----------------------------------------------------+ Best States ------------- Heat Dissipation 25 Energy Generation 15 Energy Capacity 250 Matter Stores 300 Matter Capacity 300 Sight Range 16 Terrain Scan Density 10 Armor Coverage 2000 Evasion (%) 55 Recoil Reduction 3 Item Schematics ----------------- Hcp. Storage Unit | -10/Materials | Hacked Huge Storage Unit | -10/Materials | Hacked Robot Schematics ------------------ None Fabricated ------------ Nothing Repaired ---------- Lgt. Treads | 18% | -10/Materials Lgt. Treads | 25% | -10/Materials Alien Tech Used ----------------- None Achievements -------------- None Challenges ------------ None Game ------ Seed MissileSkeletonReconstructor Manual? 0 Play Time 00:14:13 Cumulative 232.3 hours Start 2025.10.19 @ 07:21:50 End 2025.10.19 @ 07:35:04 Sessions 1 Manual Loads 0 Difficulty Rogue Special Mode None Game No. 125 Rogue 125 Adventurer 0 Explorer 0 Win Type - Total 4 Types 3/0/1/0/0/0/0/0/0/0 Lore% 73 Gallery% 71 Achievement% 63 Wizard Run 0 Options --------- Layout 1 ASCII 0 Keyboard 1 Movement Numpad Keybinds 0 Fullscreen 2 Font 24/Terminus Map View 50x40 Zoom Use 0% Tactical HUD 1 Map Filters NONE Filters NONE Steam 1 RUN: 166582a4-c60a-4406-a88f-c1230a03dbbc